fUST/lending_fUST_20250608
["ID","MTS","AMOUNT","RATE_DAILY","PERIOD"]
[364941176,1749325839828,-152.0,0.00022,2]
[364941177,1749325839838,-496.22483111,0.00022141,6]
[364941178,1749325839849,-492.26,0.00022165,2]
[364941179,1749325839860,-440.0,0.00022165,2]
[364941180,1749325839871,-1449.28,0.00022191,2]
[364941181,1749325839882,-496.22483111,0.00022314,7]
[364941182,1749325839892,-1944.8,0.00022432,2]
[364941183,1749325839903,-215.0738,0.00022436,2]
[364941184,1749325839914,-440.0,0.00022439,2]
[364941185,1749325839923,-1449.28,0.00022465,2]
[364941186,1749325839933,-496.22483111,0.00022486,7]
[364941187,1749325839943,-440.0,0.00022525,2]
[364941188,1749325839954,-382.59,0.00022649,10]
[364941189,1749325839963,-173.56978381,0.00022658,2]
[364941190,1749325839976,-496.22483111,0.00022659,7]
[364941192,1749325839985,-440.0,0.00022713,2]
[364941193,1749325839995,-1449.28,0.00022739,2]
[364941195,1749325840004,-496.22483111,0.00022831,8]
[364941197,1749325840015,-440.0,0.00022987,2]
[364941200,1749325840026,-496.22483111,0.00023003,8]
[364941202,1749325840036,-1449.28,0.00023013,2]
[364941204,1749325840045,-496.22483111,0.00023176,8]
[364941205,1749325840054,-166.370532,0.00023182,2]
[364941207,1749325840064,-570.031718,0.00023217,3]
[364941209,1749325840073,-440.0,0.00023261,2]
[364941211,1749325840082,-1449.28,0.00023287,2]
[364941213,1749325840092,-162.0,0.000233,7]
[364941215,1749325840102,-162.0,0.000233,7]
[364941217,1749325840111,-204.59,0.000233,7]
[364941219,1749325840121,-267.64111737,0.00023326,2]
[364941221,1749325840130,-496.22483111,0.00023348,9]
[364941223,1749325840140,-709.0,0.00023401,2]
[364941225,1749325840149,-2225.0,0.00023401,2]
[364941227,1749325840158,-405.0,0.00023401,2]
[364941228,1749325840167,-500.0,0.00023402,2]
[364941230,1749325840177,-500.0,0.00023426,2]
[364941232,1749325840186,-496.22483111,0.00023521,9]
[364941234,1749325840196,-440.0,0.00023535,2]
[364941236,1749325840206,-1449.28,0.00023561,2]
[364941238,1749325840216,-267.64111735,0.00023572,2]
[364941240,1749325840225,-500.98536793,0.000236,2]
[364941242,1749325840235,-316.0,0.00023691,3]
[364941244,1749325840245,-316.0,0.00023691,3]
[364941246,1749325840255,-316.0,0.00023691,3]
[364941248,1749325840264,-316.0,0.00023691,3]
[364941250,1749325840275,-316.0,0.00023691,3]
[364941252,1749325840284,-316.0,0.00023691,3]
[364941254,1749325840294,-316.0,0.00023691,3]
[364941256,1749325840305,-316.0,0.00023691,3]
[364941258,1749325840314,-316.0,0.00023691,3]
[364941260,1749325840324,-316.0,0.00023691,3]
[364941262,1749325840334,-316.0,0.00023691,3]
[364941264,1749325840344,-316.0,0.00023691,3]
[364941266,1749325840354,-316.0,0.00023691,3]
[364941268,1749325840364,-316.0,0.00023691,3]
[364941270,1749325840375,-316.0,0.00023691,3]
[364941272,1749325840385,-316.0,0.00023691,3]
[364941274,1749325840394,-316.0,0.00023691,3]
[364941276,1749325840404,-316.0,0.00023691,3]
[364941278,1749325840414,-316.0,0.00023691,3]
[364941280,1749325840423,-316.0,0.00023691,3]
[364941282,1749325840432,-316.0,0.00023691,3]
[364941284,1749325840443,-316.0,0.00023691,3]
[364941286,1749325840452,-316.0,0.00023691,3]
[364941288,1749325840462,-316.0,0.00023691,3]
[364941290,1749325840472,-316.0,0.00023691,3]
[364941292,1749325840481,-316.0,0.00023691,3]
[364941294,1749325840491,-269.88134464,0.00023691,3]
[364941296,1749325840501,-166.0,0.00023691,3]
[364941298,1749325840512,-166.0,0.00023691,3]
[364941300,1749325840523,-172.0,0.00023691,3]
[364941302,1749325840533,-168.0,0.00023691,3]
[364941304,1749325840544,-168.0,0.00023691,3]
[364941306,1749325840554,-168.0,0.00023691,3]
[364941308,1749325840564,-168.0,0.00023691,3]
[364941310,1749325840574,-168.0,0.00023691,3]
[364941312,1749325840584,-168.0,0.00023691,3]
[364941314,1749325840594,-168.0,0.00023691,3]
[364941316,1749325840604,-174.30539457,0.00023691,3]
[364941318,1749325840614,-151.0,0.00023691,7]
[364941320,1749325840623,-151.0,0.00023691,7]
[364941322,1749325840633,-162.0,0.00023691,7]
[364941324,1749325840643,-162.0,0.00023691,7]
[364941326,1749325840654,-11851.94353573,0.00023691,3]
[364941328,1749325840664,-496.22483111,0.00023693,9]
[364941330,1749325840674,-13217.5,0.00023706,11]
[364941332,1749325840684,-364.646625,0.00023726,2]
[364941333,1749325840694,-159.89887137,0.00023781,2]
[364941336,1749325840704,-1465.5,0.000238,2]
[364941338,1749325840714,-223.0315306,0.00023805,2]
[364941340,1749325840723,-466.59,0.00023809,2]
[364941342,1749325840734,-267.64111735,0.00023818,2]
[364941344,1749325840744,-1449.28,0.00023835,2]
[364941345,1749325840753,-306.0,0.00023863,2]
[364941348,1749325840763,-319.1604193,0.00023863,2]
[364941350,1749325840773,-306.0,0.00023863,2]
[364941352,1749325840783,-1195.8619859,0.00023863,2]
[364941354,1749325840793,-201.20150847,0.00023863,2]
[364941631,1749325846138,-390.0,0.00020795,2]
[364941632,1749325846148,-440.0,0.00020795,2]
[364941633,1749325846158,-440.0,0.00021069,2]
[364941634,1749325846167,-440.0,0.00021343,2]
[364941635,1749325846178,-15.94696293,0.00023863,2]
[364941636,1749325846188,-306.0,0.00023863,2]
[364941637,1749325846197,-170.57459299,0.00023866,10]
[364941649,1749326839782,-341.20221268,0.00019178,2]
[364941650,1749326842098,-98.79778732,0.00019178,2]
[364941651,1749326842120,-5386.0850566,0.0001941,2]
[364941652,1749326842146,-440.0,0.00019589,2]
[364941653,1749326842168,-440.0,0.00019589,2]
[364941654,1749326842191,-2185.6,0.00019589,2]
[364941655,1749326842215,-303.86496547,0.00019589,2]
[364941657,1749326957350,-254.27484974,0.000189,2]
[364941658,1749326957381,-440.0,0.00019589,2]
[364941659,1749326957405,-440.0,0.00019589,2]
[364941660,1749326957430,-440.0,0.00019589,2]
[364941661,1749326957458,-440.0,0.00019589,2]
[364941662,1749326957485,-440.0,0.00019589,2]
[364941663,1749326957508,-440.0,0.00019589,2]
[364941664,1749326957533,-440.0,0.00019589,2]
[364941665,1749326957558,-440.0,0.00019589,2]
[364941666,1749326957582,-440.0,0.00019589,2]
[364941667,1749326957605,-440.0,0.00019589,2]
[364941668,1749326957628,-440.0,0.00019589,2]
[364941669,1749326957651,-467.56713816,0.00019589,2]
[364941670,1749326957673,-440.0,0.00019589,2]
[364941671,1749326957697,-440.0,0.00019589,2]
[364941672,1749326957719,-430.0,0.00019589,2]
[364941673,1749326957742,-500.0,0.00019589,2]
[364941674,1749326957763,-440.0,0.00019589,2]
[364941675,1749326957784,-440.0,0.00019589,2]
[364941676,1749326957807,-440.0,0.00019589,2]
[364941677,1749326957831,-2110.91,0.00019589,2]
[364941678,1749326957855,-420.0,0.00019589,2]
[364941679,1749326957876,-776.91026597,0.0001959,2]
[364941680,1749326958229,-16397.24030034,0.0001959,2]
[364941681,1749326959124,-7725.84943369,0.0001959,2]
[364941682,1749326959152,-440.0,0.00019863,2]
[364941683,1749326959177,-440.0,0.00019863,2]
[364941684,1749326959205,-440.0,0.00019863,2]
[364941685,1749326959231,-440.0,0.00019863,2]
[364941686,1749326959257,-440.0,0.00019863,2]
[364941687,1749326959281,-440.0,0.00019863,2]
[364941688,1749326959305,-440.0,0.00019863,2]
[364941689,1749326959326,-440.0,0.00019863,2]
[364941690,1749326959351,-440.0,0.00019863,2]
[364941691,1749326959375,-2110.91,0.00019863,2]
[364941692,1749326959400,-440.0,0.00020137,2]
[364941693,1749326959424,-440.0,0.00020137,2]
[364941694,1749326959448,-440.0,0.00020137,2]
[364941695,1749326959470,-295.2,0.00020137,2]
[364941696,1749326959492,-370.0,0.00020137,2]
[364941697,1749326959516,-440.0,0.00020137,2]
[364941698,1749326959539,-440.0,0.00020137,2]
[364941699,1749326959564,-440.0,0.00020137,2]
[364941700,1749326959590,-755.00697081,0.00020137,2]
[364941701,1749326972769,440.0,0.00019589,2]
[364941702,1749326976635,384.62199335,0.00019589,2]
[364941703,1749326977064,12.1546937,0.00019589,2]
[364941710,1749327036680,-427.8453063,0.00019589,2]
[364941711,1749327036690,-440.0,0.00019589,2]
[364941712,1749327036701,-199.72183186,0.00019589,2]
[364941732,1749327038054,-240.27816814,0.00019589,2]
[364941733,1749327038064,-325.76183186,0.00019589,2]
[364941734,1749327038106,-179.99048911,0.00019589,2]
[364941735,1749327038115,-440.0,0.00019589,2]
[364941736,1749327038129,-440.0,0.00019589,2]
[364941737,1749327038140,-440.0,0.00019863,2]
[364941738,1749327038152,-427.94,0.00019863,2]
[364941739,1749327038163,-440.0,0.00019863,2]
[364941740,1749327038174,-440.0,0.00019863,2]
[364941741,1749327038183,-384.15739841,0.00019863,2]
[364941743,1749327038193,-1200.0,0.00020135,2]
[364941745,1749327038205,-251.0,0.00020136,2]
[364941747,1749327038214,-300.0,0.00020136,2]
[364941749,1749327038224,-300.0,0.00020136,2]
[364941750,1749327038233,-1355.90302919,0.00020137,2]
[364941752,1749327038245,-440.0,0.00020137,2]
[364941755,1749327038255,-440.0,0.00020137,2]
[364941757,1749327038266,-440.0,0.00020137,2]
[364941759,1749327038275,-440.0,0.00020244,2]
[364941761,1749327038285,-440.0,0.00020244,2]
[364941763,1749327038295,-440.0,0.00020244,2]
[364941764,1749327038304,-440.0,0.00020244,2]
[364941766,1749327038314,-229.04574517,0.00020244,2]
[364941768,1749327038324,-229.87969331,0.00020411,2]
[364941770,1749327038334,-440.0,0.00020411,2]
[364941772,1749327038343,-440.0,0.00020411,2]
[364941774,1749327038353,-440.0,0.00020411,2]
[364941776,1749327038362,-2110.91,0.00020411,2]
[364941778,1749327038373,-440.0,0.00020411,2]
[364941781,1749327038384,-440.0,0.00020411,2]
[364941783,1749327038394,-440.0,0.00020411,2]
[364941785,1749327038403,-232.33434901,0.00020496,2]
[364941787,1749327038413,-982.86,0.00020561,2]
[364941788,1749327038423,-434.35808392,0.00020596,2]
[364941790,1749327038433,-440.0,0.00020596,2]
[364941792,1749327038443,-430.0,0.00020596,2]
[364941794,1749327038453,-400.0,0.00020596,2]
[364941796,1749327038463,-561.89753536,0.00020596,2]
[364941798,1749327038472,-440.0,0.00020596,2]
[364941800,1749327038482,-440.0,0.00020596,2]
[364941802,1749327038491,-517.73729379,0.00020596,2]
[364941804,1749327038502,-440.0,0.00020596,2]
[364941806,1749327038511,-420.0,0.00020596,2]
[364941808,1749327038521,-440.0,0.00020596,2]
[364941810,1749327038531,-440.0,0.00020596,2]
[364941812,1749327038541,-277.02910787,0.00020596,2]
[364941815,1749327038555,-152.97089213,0.00020596,2]
[364941817,1749327038565,-440.0,0.00020596,2]
[364941819,1749327038575,-232.24427179,0.00020596,2]
[364941821,1749327038585,-420.0,0.00020596,2]
[364941823,1749327038595,-410.0,0.00020596,2]
[364941824,1749327038605,-440.0,0.00020596,2]
[364941826,1749327038615,-440.0,0.00020596,2]
[364941829,1749327038625,-422.70486328,0.00020596,2]
[364941830,1749327038635,-430.0,0.00020596,2]
[364941832,1749327038644,-420.0,0.00020596,2]
[364941834,1749327038654,-189.31904658,0.00020596,2]
[364941836,1749327038664,-420.0,0.00020596,2]
[364941838,1749327038674,-440.0,0.00020596,2]
[364941839,1749327038684,-420.0,0.00020596,2]
[364941840,1749327038694,-440.0,0.00020596,2]
[364941842,1749327038707,-500.0,0.00020596,2]
[364941844,1749327038716,-420.7582188,0.00020596,2]
[364941846,1749327038726,-440.0,0.00020596,2]
[364941848,1749327038735,-440.0,0.00020596,2]
[364941850,1749327038745,-440.0,0.00020596,2]
[364941851,1749327038754,-440.0,0.00020596,2]
[364941852,1749327038764,-420.0,0.00020596,2]
[364941853,1749327038774,-430.0,0.00020596,2]
[364941854,1749327038783,-543.54597485,0.00020596,2]
[364941855,1749327038792,-430.0,0.00020596,2]
[364941856,1749327038802,-440.0,0.00020596,2]
[364941857,1749327038812,-444.92,0.00020596,2]
[364941858,1749327038821,-186.7641323,0.00020596,2]
[364941872,1749327040350,-216.31016594,0.00020596,2]
[364941874,1749327040360,-440.0,0.00020596,2]
[364941875,1749327040370,-430.0,0.00020596,2]
[364941876,1749327040380,-440.0,0.00020596,2]
[364941877,1749327040390,-440.0,0.00020596,2]
[364941878,1749327040400,-193.72963428,0.00020596,2]
[364941879,1749327040409,-440.0,0.00020596,2]
[364941880,1749327040418,-440.0,0.00020596,2]
[364941881,1749327040427,-420.0,0.00020596,2]
[364941882,1749327040437,-440.0,0.00020596,2]
[364941883,1749327040447,-440.0,0.00020596,2]
[364941884,1749327040457,-440.0,0.00020596,2]
[364941885,1749327040466,-440.0,0.00020596,2]
[364941886,1749327040475,-440.0,0.00020596,2]
[364941887,1749327040485,-440.0,0.00020596,2]
[364941888,1749327040495,-440.0,0.00020596,2]
[364941889,1749327040504,-440.0,0.00020596,2]
[364941890,1749327040514,-219.44302782,0.00020596,2]
[364941891,1749327040523,-440.0,0.00020597,2]
[364941892,1749327040532,-834.52263295,0.00020621,2]
[364941893,1749327040541,-160.0,0.00020621,2]
[364941894,1749327040552,-11851.94353573,0.00020621,2]
[364941895,1749327040561,-229.56495552,0.00020621,2]
[364941896,1749327040571,-842.5625,0.00020621,2]
[364941897,1749327040580,-423.90693687,0.00020621,2]
[364941898,1749327040589,-315.08178181,0.00020621,2]
[364941899,1749327040599,-440.0,0.00020685,2]
[364941900,1749327040608,-440.0,0.00020685,2]
[364941901,1749327040618,-440.0,0.00020685,2]
[364941902,1749327040627,-2110.91,0.00020685,2]
[364941903,1749327040637,-440.0,0.00020685,2]
[364941904,1749327040647,-473.197107,0.00020685,2]
[364941905,1749327040656,-440.0,0.00020685,2]
[364941906,1749327040665,-440.0,0.00020795,2]
[364941907,1749327040676,-400.0,0.00020795,2]
[364941908,1749327040685,-440.0,0.00020795,2]
[364941909,1749327040694,-266.02928671,0.00020795,2]
[364941910,1749327040704,-440.0,0.00020795,2]
[364941911,1749327040714,-338.4479191,0.00020795,2]
[364941912,1749327040724,-430.0,0.00020795,2]
[364941913,1749327040733,-440.0,0.00020795,2]
[364941914,1749327040743,-380.0,0.00020795,2]
[364941915,1749327040752,-440.0,0.00020795,2]
[364941916,1749327040763,-440.0,0.00020795,2]
[364941917,1749327040772,-440.0,0.00020795,2]
[364941918,1749327040782,-430.0,0.00020795,2]
[364941919,1749327040792,-440.0,0.00020795,2]
[364941920,1749327040801,-440.0,0.00020795,2]
[364941921,1749327040810,-430.0,0.00020795,2]
[364941922,1749327040819,-430.0,0.00020795,2]
[364941923,1749327040829,-415.83528251,0.00020795,2]
[364941924,1749327040839,-440.0,0.00020795,2]
[364941925,1749327040848,-500.0,0.00020858,2]
[364941926,1749327040858,-440.0,0.0002087,2]
[364941927,1749327040867,-440.0,0.0002087,2]
[364941928,1749327040877,-440.0,0.0002087,2]
[364941929,1749327040887,-440.0,0.0002087,2]
[364941930,1749327040896,-440.0,0.0002087,2]
[364941931,1749327040906,-440.0,0.0002087,2]
[364941932,1749327040916,-440.0,0.0002087,2]
[364941933,1749327040926,-440.0,0.0002087,2]
[364941934,1749327040935,-440.0,0.0002087,2]
[364941935,1749327040945,-440.0,0.0002087,2]
[364941936,1749327040954,-440.0,0.0002087,2]
[364941937,1749327040964,-440.0,0.0002087,2]
[364941938,1749327040974,-440.0,0.0002087,2]
[364941939,1749327040983,-440.0,0.0002087,2]
[364941940,1749327040993,-440.0,0.0002087,2]
[364941941,1749327041003,-546.23378846,0.000209,4]
[364941942,1749327041012,-321.84,0.00020959,2]
[364941943,1749327041022,-440.0,0.00020959,2]
[364941944,1749327041031,-440.0,0.00020959,2]
[364941945,1749327041041,-2110.91,0.00020959,2]
[364941946,1749327041051,-440.0,0.00020959,2]
[364941947,1749327041062,-440.0,0.00020959,2]
[364941948,1749327041071,-208.75296417,0.00020969,2]
[364941949,1749327041081,-546.23378821,0.00021038,4]
[364941950,1749327041091,-430.0,0.00021069,2]
[364941951,1749327041101,-440.0,0.00021069,2]
[364941952,1749327041110,-232.33434901,0.00021079,2]
[364941953,1749327041120,-370.86725649,0.00021143,2]
[364941954,1749327041129,-440.0,0.00021144,2]
[364941955,1749327041140,-440.0,0.00021144,2]
[364941956,1749327041153,-502.58,0.00021144,2]
[364941957,1749327041162,-440.0,0.00021144,2]
[364941958,1749327041172,-440.0,0.00021144,2]
[364941959,1749327041183,-420.0,0.00021144,2]
[364941960,1749327041192,-440.0,0.00021144,2]
[364941961,1749327041201,-585.7583,0.00021144,2]
[364941962,1749327041210,-177.62410349,0.00021144,2]
[364941963,1749327041220,-150.94,0.00021144,2]
[364941964,1749327041229,-546.23378821,0.00021176,4]
[364941965,1749327041239,-283.7,0.000212,2]
[364941966,1749327041248,-440.0,0.00021233,2]
[364941967,1749327041257,-440.0,0.00021233,2]
[364941968,1749327041267,-1497.31811556,0.00021233,2]
[364941989,1749327046387,-440.0,0.00019589,2]
[364941990,1749327046396,-403.68,0.00020595,2]
[364941991,1749327046407,-613.59188444,0.00021233,2]
[364941992,1749327046416,-440.0,0.00021233,2]
[364941993,1749327046426,-440.0,0.00021233,2]
[364941994,1749327046436,-546.23378821,0.00021314,5]
[364941995,1749327046446,-440.0,0.00021343,2]
[364941996,1749327046456,-440.0,0.00021418,2]
[364941997,1749327046465,-440.0,0.00021418,2]
[364941998,1749327046475,-440.0,0.00021418,2]
[364941999,1749327046486,-546.23378821,0.00021452,5]
[364942000,1749327046495,-440.0,0.00021507,2]
[364942001,1749327046506,-440.0,0.00021507,2]
[364942002,1749327046515,-685.43585137,0.00021507,2]
[364942003,1749327046528,-399.99760524,0.00021507,2]
[364942004,1749327046539,-1025.47654339,0.00021507,2]
[364942005,1749327046550,-440.0,0.00021507,2]
[364942006,1749327046561,-440.0,0.00021507,2]
[364942007,1749327046571,-546.23378821,0.0002159,5]
[364942008,1749327046580,-440.0,0.00021617,2]
[364942009,1749327046590,-232.33434901,0.00021663,2]
[364942010,1749327046600,-440.0,0.00021692,2]
[364942011,1749327046609,-440.0,0.00021692,2]
[364942012,1749327046619,-102.20991798,0.00021692,2]
[364942014,1749327166022,2000.0,0.0002468,30]
[364942015,1749327166376,2000.0,0.0002468,30]
[364942016,1749327166749,2000.0,0.0002468,30]
[364942018,1749327291548,166.313349,0.00013699,2]
[364942027,1749328038117,-300.0,0.00018611,2]
[364942028,1749328038141,-300.0,0.00018612,2]
[364942029,1749328038163,-300.0,0.00018612,2]
[364942030,1749328038186,-300.0,0.00018612,2]
[364942031,1749328038209,-866.80723535,0.00018612,2]
[364942032,1749328040129,-333.19276465,0.00018612,2]
[364942033,1749328040152,-1.64273617,0.00018613,2]
[364942034,1749328041140,-298.35726383,0.00018613,2]
[364942035,1749328041165,-11295.32719948,0.00018614,2]
[364942037,1749328054108,-1380.64730988,0.00018614,2]
[364942041,1749328117447,1763187.5804145,0.00024681,30]
[364942045,1749328124328,301.999999,0.00024681,120]
[364942051,1749328158175,-4173.01599944,0.00018614,2]
[364942052,1749328158198,-206.3127251,0.00018683,2]
[364942053,1749328158220,-219.5165665,0.000189,2]
[364942054,1749328158242,-800.0,0.00019165,2]
[364942055,1749328158265,-697.89249494,0.00019168,2]
[364942056,1749328158287,-242.0,0.00019177,2]
[364942057,1749328158312,-400.0,0.00019178,2]
[364942058,1749328158491,-440.0,0.00019178,2]
[364942059,1749328158518,-440.0,0.00019178,2]
[364942060,1749328158544,-440.0,0.00019178,2]
[364942061,1749328158570,-440.0,0.00019178,2]
[364942062,1749328158593,-440.0,0.00019178,2]
[364942063,1749328158616,-440.0,0.00019178,2]
[364942064,1749328158645,-440.0,0.00019178,2]
[364942065,1749328158672,-588.68714381,0.00019178,2]
[364942066,1749328158696,-440.0,0.00019178,2]
[364942067,1749328158720,-440.0,0.00019178,2]
[364942068,1749328158744,-440.0,0.00019178,2]
[364942069,1749328158768,-440.0,0.00019178,2]
[364942070,1749328158792,-440.0,0.00019178,2]
[364942071,1749328158816,-2288.56,0.00019178,2]
[364942072,1749328158841,-550.08,0.00019178,2]
[364942073,1749328158866,-440.0,0.00019178,2]
[364942074,1749328158888,-28020.00530751,0.00019178,2]
[364942075,1749328158909,-973.5292314,0.00019268,2]
[364942077,1749328158933,-440.0,0.00019452,2]
[364942078,1749328158958,-440.0,0.00019452,2]
[364942080,1749328158983,-540.90235429,0.00019452,2]
[364942081,1749328159008,-440.0,0.00019452,2]
[364942083,1749328159032,-440.0,0.00019452,2]
[364942084,1749328159054,-440.0,0.00019452,2]
[364942085,1749328159079,-440.0,0.00019452,2]
[364942086,1749328159102,-440.0,0.00019452,2]
[364942087,1749328159124,-390.54592318,0.00019452,2]
[364942088,1749328159147,-440.0,0.00019452,2]
[364942089,1749328159170,-430.0,0.00019452,2]
[364942090,1749328159197,-2288.56,0.00019452,2]
[364942091,1749328159222,-550.08,0.00019452,2]
[364942092,1749328159246,-440.0,0.00019452,2]
[364942093,1749328159268,-440.0,0.00019587,2]
[364942094,1749328159291,-410.0,0.00019587,2]
[364942095,1749328159313,-440.0,0.00019587,2]
[364942096,1749328159335,-437.40063294,0.00019587,2]
[364942097,1749328159358,-197.58,0.00019587,2]
[364942098,1749328159381,-440.0,0.00019587,2]
[364942099,1749328159405,-440.0,0.00019587,2]
[364942100,1749328159427,-440.0,0.00019587,2]
[364942101,1749328159452,-440.0,0.00019587,2]
[364942102,1749328159478,-440.0,0.00019587,2]
[364942103,1749328159502,-440.0,0.00019587,2]
[364942104,1749328159524,-440.0,0.00019587,2]
[364942105,1749328159547,-440.0,0.00019587,2]
[364942106,1749328159569,-420.0,0.00019588,2]
[364942107,1749328159592,-440.0,0.00019588,2]
[364942108,1749328159614,-440.0,0.00019588,2]
[364942109,1749328159639,-440.0,0.00019588,2]
[364942110,1749328159661,-308.38324926,0.00019588,2]
[364942111,1749328159682,-440.0,0.00019588,2]
[364942112,1749328159704,-440.0,0.00019588,2]
[364942113,1749328159727,-440.0,0.00019588,2]
[364942114,1749328159748,-440.0,0.00019588,2]
[364942115,1749328159770,-440.0,0.00019588,2]
[364942116,1749328159791,-440.0,0.00019588,2]
[364942117,1749328159815,-440.0,0.00019588,2]
[364942118,1749328159837,-440.0,0.00019588,2]
[364942119,1749328159860,-440.0,0.00019588,2]
[364942120,1749328159883,-315.25999671,0.00019588,2]
[364942121,1749328159905,-428.2439489,0.00019588,2]
[364942122,1749328159927,-440.0,0.00019588,2]
[364942123,1749328159949,-430.0,0.00019588,2]
[364942124,1749328159971,-551.44090945,0.00019588,2]
[364942125,1749328159995,-410.0,0.00019588,2]
[364942126,1749328160017,-440.0,0.00019588,2]
[364942127,1749328160040,-440.0,0.00019588,2]
[364942128,1749328160062,-440.0,0.00019588,2]
[364942129,1749328160083,-440.0,0.00019588,2]
[364942130,1749328160105,-440.0,0.00019588,2]
[364942131,1749328160127,-220.07538702,0.00019588,2]
[364942132,1749328160149,-400.0,0.00019588,2]
[364942133,1749328160170,-440.0,0.00019588,2]
[364942134,1749328160191,-440.0,0.00019588,2]
[364942135,1749328160212,-430.89750212,0.00019588,2]
[364942136,1749328160234,-440.0,0.00019588,2]
[364942137,1749328160256,-2311.95038321,0.00019692,2]
[364942138,1749328160280,-440.0,0.00019726,2]
[364942139,1749328160306,-440.0,0.00019726,2]
[364942140,1749328160331,-440.0,0.00019726,2]
[364942141,1749328160356,-440.0,0.00019726,2]
[364942142,1749328160383,-203.26378522,0.00019726,2]
[364942143,1749328169148,-76.29621478,0.00019726,2]
[364942144,1749328169171,-440.0,0.00019726,2]
[364942145,1749328169195,-295.2552752,0.00019726,2]
[364942146,1749328177923,203.252,0.00019178,2]
[364942204,1749328232607,-236.748,0.00019178,2]
[364942205,1749328232618,-440.0,0.00019178,2]
[364942206,1749328232640,-440.0,0.00019178,2]
[364942207,1749328232650,-399.44,0.00019178,2]
[364942208,1749328232660,-1200.0,0.00019451,2]
[364942209,1749328232670,-440.0,0.00019452,2]
[364942210,1749328232680,-440.0,0.00019452,2]
[364942211,1749328232694,-440.0,0.00019452,2]
[364942212,1749328232703,-300.0,0.00019725,2]
[364942213,1749328232714,-300.0,0.00019725,2]
[364942214,1749328232724,-1993.3047248,0.00019726,2]
[364942215,1749328232736,-550.08,0.00019726,2]
[364942216,1749328232746,-440.0,0.00019726,2]
[364942217,1749328232757,-440.0,0.00019726,2]
[364942218,1749328232773,-440.0,0.00019726,2]
[364942219,1749328232783,-440.0,0.00019726,2]
[364942220,1749328232793,-440.0,0.00019861,2]
[364942221,1749328232802,-440.0,0.00019861,2]
[364942222,1749328232812,-440.0,0.00019861,2]
[364942223,1749328232823,-440.0,0.00019861,2]
[364942224,1749328232832,-440.0,0.00019862,2]
[364942225,1749328232842,-697.89249491,0.00019941,2]
[364942226,1749328232852,-440.0,0.0002,2]
[364942227,1749328232861,-440.0,0.0002,2]
[364942228,1749328232871,-2288.56,0.0002,2]
[364942229,1749328232880,-550.08,0.0002,2]
[364942230,1749328232890,-440.0,0.0002,2]
[364942231,1749328232900,-440.0,0.0002,2]
[364942232,1749328232910,-14.19655564,0.0002,2]
[364942233,1749328232924,-425.80344436,0.0002,2]
[364942234,1749328232934,-440.0,0.0002,2]
[364942235,1749328232944,-440.0,0.00020135,2]
[364942236,1749328232955,-440.0,0.00020135,2]
[364942237,1749328232966,-440.0,0.00020135,2]
[364942238,1749328232976,-440.0,0.00020135,2]